Cogmind - Beta 12 @@@ ROGUE MODE // 2023.05.17 @ 12:09:20 Player: Mr Goldstein Result: Self-destructed Performance ------------- Evolutions (6) 3000 Regions Visited (16) 3200 Robots Destroyed (3) 15 Value Destroyed (101) 101 Prototype IDs (7) 140 Alien Tech Used (0) 0 Bonus (2243) 2243 TOTAL SCORE: 8699 Bonus ------- Pacifist 200 Follower Combat Kills 243 Entered Garrisons 200 Entered DSFs 500 Met Warlord at Base 500 MAIN.C Attacked Warlord 500 Warlord Defense Kills 100 Cogmind --------- Core Integrity 1022/1150 Matter 295/300 Energy 81/100 System Corruption 1% Temperature Hot (242) Movement Flying (24) Location -4/Garrison Parts ------- > --- POWER (2) -------- (None) > --- PROPULSION (8) --- Cesium-ion Thruster Nuclear Pulse Thruster Field Propulsion Drive Improved Diametric Drive Improved Diametric Drive > --- UTILITY (7) ------ Spectral Analyzer Advanced Signal Interpreter Improved System Shield Improved System Shield Improved System Shield Improved System Shield > --- WEAPON (2) ------- (None) > --- INVENTORY (5) ---- Xenon Bombardment Thruster Peak State ------------ > --- POWER ------------ Vortex Chain Reactor > --- PROPULSION ------- Cesium-ion Thruster Cesium-ion Thruster Improved VTOL Module Xenon Bombardment Thruster Xenon Bombardment Thruster Nuclear Pulse Thruster Field Propulsion Drive > --- UTILITY ---------- Spectral Analyzer Advanced Signal Interpreter System Shield Improved System Shield Improved System Shield Improved System Shield Improved System Shield > --- WEAPON ----------- Vortex Rail Vortex Rail > --- INVENTORY -------- Xenon Bombardment Thruster Improved Diametric Drive Improved Diametric Drive [Rating: 106] Favorites ----------- Power Micro Fission Core Engine Light Ion Engine Power Core Micro Fission Core Reactor Vortex Chain Reactor Propulsion Cesium-ion Thruster Flight Unit Cesium-ion Thruster Utility Improved System Shield Device Makeshift Sensor Array Processor Advanced Signal Interpreter Hackware Improved System Shield Weapon Scythe Energy Gun Vortex Rail Slashing Weapon Scythe Build | -11 -10 -9 -9 -9 -8 -8 -7 -6 -6 -5 -5 -5 -5 -4 -4 -4 ------- Run | Jun Mat Mat Min Exi Min Mat Fac Fac DSF Fac Upp Upp War Pro Fac Gar Slots Evolved 12 | . . 2 . . . 2 2 2 . 2 . . . . 2 . Power 1 | . . . . . . . . . . . . . . . 1 . Propulsion 6 | . . 2 . . . . 1 1 . 1 . . . . 1 . Utility 5 | . . . . . . 2 1 1 . 1 . . . . . . Weapon . | . . . . . . . . . . . . . . . . . Parts Attached 40 | . . . . 1 . 10 5 . 8 6 . 4 3 . 2 1 Power 5 | . . . . . . 2 1 . . 1 . . . . 1 . Engine 1 | . . . . . . 1 . . . . . . . . . . Core 3 | . . . . . . 1 1 . . 1 . . . . . . Reactor 1 | . . . . . . . . . . . . . . . 1 . Propulsion 18 | . . . . . . 6 1 . 4 1 . 4 . . 1 1 Treads . | . . . . . . . . . . . . . . . . . Leg . | . . . . . . . . . . . . . . . . . Wheel . | . . . . . . . . . . . . . . . . . Hover . | . . . . . . . . . . . . . . . . . Flight 18 | . . . . . . 6 1 . 4 1 . 4 . . 1 1 Utility 12 | . . . . 1 . 2 2 . 4 2 . . 1 . . . Device 3 | . . . . 1 . 1 . . . 1 . . . . . . Storage . | . . . . . . . . . . . . . . . . . Processor 2 | . . . . . . . . . . 1 . . 1 . . . Hackware 7 | . . . . . . 1 2 . 4 . . . . . . . Protection . | . . . . . . . . . . . . . . . . . Artifact . | . . . . . . . . . . . . . . . . . Weapon 5 | . . . . . . . 1 . . 2 . . 2 . . . Energy Gun 2 | . . . . . . . . . . . . . 2 . . . Energy Cannon . | . . . . . . . . . . . . . . . . . Ballistic Gun . | . . . . . . . . . . . . . . . . . Ballistic Cannon . | . . . . . . . . . . . . . . . . . Launcher . | . . . . . . . . . . . . . . . . . Special Weapon . | . . . . . . . . . . . . . . . . . Impact Weapon . | . . . . . . . . . . . . . . . . . Slashing Weapon 3 | . . . . . . . 1 . . 2 . . . . . . Piercing Weapon . | . . . . . . . . . . . . . . . . . Special Melee Weapon . | . . . . . . . . . . . . . . . . . Unidentified Prototypes 5 | . . . . . . 1 . . . . . . 2 . 2 . Parts Lost 17 | . . . . . . . 7 . 2 2 . 1 . . 1 4 Power 2 | . . . . . . . 2 . . . . . . . . . Propulsion 8 | . . . . . . . 1 . 2 1 . . . . 1 3 Utility 6 | . . . . . . . 4 . . . . 1 . . . 1 Weapon 1 | . . . . . . . . . . 1 . . . . . . Highest Loss Streak 9 | . . . . . . . 7 . 9 2 . 1 . . 1 5 To Critical Strikes . | . . . . . . . . . . . . . . . . . Average Slot Usage (%) 50 | . . . . 2 11 33 73 40 67 77 94 95 95 100 84 70 Core 2 | . . . . . . 2 6 . . 5 5 5 5 5 . . Flight 21 | . . . . . . 17 34 26 30 31 35 39 41 41 42 32 Device 2 | . . . . 2 11 12 11 . . 1 5 2 . . . . Processor 2 | . . . . . . . . . . 1 5 5 6 11 10 10 Hackware 14 | . . . . . . . 13 6 30 29 29 29 29 29 26 23 Energy Gun 1 | . . . . . . . . . . . . . 6 11 . . Slashing Weapon 3 | . . . . . . . 7 6 6 6 11 11 4 . . . Naked Turns 481 | . 32 42 156 251 . . . . . . . . . . . . Heaviest Build 35 | . . . . 5 5 11 16 5 5 10 10 10 23 23 35 35 Greatest Support 40 | 3 3 3 3 3 3 20 25 20 22 27 27 27 40 27 40 37 Greatest Overweight (x) 1 | . . . . 1 1 1 . . . . . . . . . . Average Overweight (x) . | . . . . . 1 . . . . . . . . . . . Largest Inventory Capacity 5 | 5 5 5 5 5 5 5 5 5 5 5 5 5 5 5 5 5 Average Capacity 5 | 5 5 5 5 5 5 5 5 5 5 5 5 5 5 5 5 5 Most Carried 5 | . . . . 3 3 5 5 3 5 5 5 5 5 5 5 2 Average Carried 3 | . . . . 2 3 4 4 3 3 4 5 4 4 5 2 1 Final Capacity 5 | 5 5 5 5 5 5 5 5 5 5 5 5 5 5 5 5 5 Final Carried 5 | . . . . 3 3 5 3 3 5 5 5 5 5 5 2 1 Class Distribution -------------------- 51% | Hacker-Sprinter 24% | Mutant 16% | Commander-Mutant 4% | Hacker-Mutant Dominant Class ---------------- Mutant | -10/Materials Mutant | -9/Materials Mutant | -9/Mines Commander-Mutant | -9/Exiles Commander-Mutant | -8/Mines Commander-Mutant | -8/Materials Sprinter | -7/Factory Sprinter | -6/Factory Hacker-Mutant | -6/DSF Hacker-Sprinter | -5/Factory Hacker-Sprinter | -5/Upper Caves Hacker-Sprinter | -5/Upper Caves Hacker-Sprinter | -5/Warlord Hacker-Sprinter | -4/Proximity Caves Hacker-Sprinter | -4/Factory Hacker-Sprinter | -4/Garrison Resources | -11 -10 -9 -9 -9 -8 -8 -7 -6 -6 -5 -5 -5 -5 -4 -4 -4 ----------- Run | Jun Mat Mat Min Exi Min Mat Fac Fac DSF Fac Upp Upp War Pro Fac Gar Matter Collected 545 | 179 . 21 . . . 90 26 . 8 . 37 114 24 . 46 . Remotely . | . . . . . . . . . . . . . . . . . Salvage Created 186 | . . . 22 . . . 26 . . . . 114 24 . . . Parts 9 | . . . 2 . . . 4 . . . . 3 . . . . Haulers Intercepted . | . . . . . . . . . . . . . . . . . Recyclers Shooed . | . . . . . . . . . . . . . . . . . Parts Field Recycled . | . . . . . . . . . . . . . . . . . Retrieved Matter . | . . . . . . . . . . . . . . . . . Parts Self-Destructed 4 | . . . . . . . . . . . . 4 . . . . Prevented 2 | . . . . . . . . . . . . 2 . . . . Kills | -11 -10 -9 -9 -9 -8 -8 -7 -6 -6 -5 -5 -5 -5 -4 -4 -4 ------- Run | Jun Mat Mat Min Exi Min Mat Fac Fac DSF Fac Upp Upp War Pro Fac Gar Combat Hostiles Destroyed 1 | . . . . . . . . . . . . . 1 . . . Guns 1 | . . . . . . . . . . . . . 1 . . . Classes Destroyed 3 | . . . 1 . . . 1 . . . . . 1 . . . Tunneler 1 | . . . 1 . . . . . . . . . . . . . Operator 1 | . . . . . . . 1 . . . . . . . . . Grunt 1 | . . . . . . . . . . . . . 1 . . . Best Kill Streak 1 | . . . 1 . . . 1 . . . . . 1 . . . Combat Bots Only 1 | . . . . . . . . . . . . . 1 . . . Max Kills in Single Turn 1 | . . . 1 . . . 1 . . . . . 1 . . . Gunslinging . | . . . . . . . . . . . . . . . . . Exploded . | . . . . . . . . . . . . . . . . . Melee . | . . . . . . . . . . . . . . . . . Uniques/NPCs Destroyed . | . . . . . . . . . . . . . . . . . Combat | -11 -10 -9 -9 -9 -8 -8 -7 -6 -6 -5 -5 -5 -5 -4 -4 -4 -------- Run | Jun Mat Mat Min Exi Min Mat Fac Fac DSF Fac Upp Upp War Pro Fac Gar Damage Taken 1644 | . 75 85 69 . . 60 448 . 159 114 . 96 147 . 132 259 Core 531 | . 75 85 69 . . 13 9 . 68 49 . 15 20 . 39 89 Absorbed by Shields . | . . . . . . . . . . . . . . . . . Regen/Repaired (Parts) 3 | . . . . . . . . . . . . . 3 . . . Core Remaining (%) 87 | 100 70 . . . 61 97 98 . 92 . . . . 91 . . Volleys Fired 7 | . . . . . . . . . . . . . 7 . . . Largest 2 | . . . . . . . . . . . . . 2 . . . Hottest 90 | . . . . . . . . . . . . . 90 . . . Shots Fired 14 | . . . . . . . . . . . . . 14 . . . Gun 14 | . . . . . . . . . . . . . 14 . . . Cannon . | . . . . . . . . . . . . . . . . . Launcher . | . . . . . . . . . . . . . . . . . Special . | . . . . . . . . . . . . . . . . . Kinetic . | . . . . . . . . . . . . . . . . . Thermal . | . . . . . . . . . . . . . . . . . Explosive . | . . . . . . . . . . . . . . . . . Electromagnetic . | . . . . . . . . . . . . . . . . . Entropic 14 | . . . . . . . . . . . . . 14 . . . Robot Hit Streak 2 | . . . . . . . . . . . . . 2 . . . Robot Miss Streak 1 | . . . . . . . . . . . . . 1 . . . Penetration Max . | . . . . . . . . . . . . . . . . . Secondary Targets . | . . . . . . . . . . . . . . . . . Shots Hit Robots 6 | . . . . . . . 1 . . . . 2 3 . . . Core Hits 5 | . . . 2 . . . 1 . . . . 1 1 . . . Critical Kills . | . . . . . . . . . . . . . . . . . Critical Parts Destroyed . | . . . . . . . . . . . . . . . . . Critical Strikes . | . . . . . . . . . . . . . . . . . Melee Attacks 16 | . . . . . . . 7 . . 6 . 3 . . . . Impact . | . . . . . . . . . . . . . . . . . Slashing 16 | . . . . . . . 7 . . 6 . 3 . . . . Piercing . | . . . . . . . . . . . . . . . . . Sneak Attacks 1 | . . . . . . . 1 . . . . . . . . . Combat Hostiles . | . . . . . . . . . . . . . . . . . Follow-up Attacks . | . . . . . . . . . . . . . . . . . Damage Inflicted 391 | . . . 30 . . . 117 . . . . 131 113 . . . Guns 113 | . . . . . . . . . . . . . 113 . . . Cannons . | . . . . . . . . . . . . . . . . . Explosions . | . . . . . . . . . . . . . . . . . Melee 248 | . . . . . . . 117 . . . . 131 . . . . Ramming 30 | . . . 30 . . . . . . . . . . . . . Kinetic . | . . . . . . . . . . . . . . . . . Thermal . | . . . . . . . . . . . . . . . . . Explosive . | . . . . . . . . . . . . . . . . . Electromagnetic . | . . . . . . . . . . . . . . . . . Impact . | . . . . . . . . . . . . . . . . . Slashing 248 | . . . . . . . 117 . . . . 131 . . . . Piercing . | . . . . . . . . . . . . . . . . . Entropic 113 | . . . . . . . . . . . . . 113 . . . Highest Corruption 12 | . . . 2 2 2 . 12 . . . . . . . 1 1 Average Corruption 2 | . . . 2 2 2 . 12 . . . . . . . 1 1 Corruption Purged . | . . . . . . . . . . . . . . . . . Corruption Blocked . | . . . . . . . . . . . . . . . . . Effects 6 | . . . 1 2 1 . 1 . . . . . . . . 1 Message Errors 3 | . . . . . 1 . 1 . . . . . . . . 1 Matter Fused 1 | . . . . 1 . . . . . . . . . . . . Energy Discharges 1 | . . . . 1 . . . . . . . . . . . . Data Loss (minor) 1 | . . . 1 . . . . . . . . . . . . . Overload Shots . | . . . . . . . . . . . . . . . . . Overflow Damage 48 | . . . . . . . . . . . . 48 . . . . Projectiles . | . . . . . . . . . . . . . . . . . Explosions . | . . . . . . . . . . . . . . . . . Melee 48 | . . . . . . . . . . . . 48 . . . . Knockbacks 1 | . . . 1 . . . . . . . . . . . . . Impact 1 | . . . 1 . . . . . . . . . . . . . Kinetic . | . . . . . . . . . . . . . . . . . Secondary . | . . . . . . . . . . . . . . . . . Self-Inflicted Damage 13 | . . . 13 . . . . . . . . . . . . . Shots . | . . . . . . . . . . . . . . . . . Rammed 9 | . . . 9 . . . . . . . . . . . . . Targets Rammed 9 | . . . 9 . . . . . . . . . . . . . Kicked . | . . . . . . . . . . . . . . . . . Crushed . | . . . . . . . . . . . . . . . . . Highest Temperature 251 | . . . . . . . . . . 5 . . 126 . 132 251 Average Temperature 67 | . . . . . . . . . . 4 . . 43 . 81 120 Received Heat Transfer 201 | . 39 15 12 . . 9 . . . 9 . . 9 . 51 57 Siege Activations . | . . . . . . . . . . . . . . . . . Robots Corrupted . | . . . . . . . . . . . . . . . . . Combat Hostiles . | . . . . . . . . . . . . . . . . . Parts Fried . | . . . . . . . . . . . . . . . . . Impact Corruptions . | . . . . . . . . . . . . . . . . . Robots Melted . | . . . . . . . . . . . . . . . . . Combat Hostiles . | . . . . . . . . . . . . . . . . . Parts Melted . | . . . . . . . . . . . . . . . . . Heat Transferred . | . . . . . . . . . . . . . . . . . Parts Sabotaged . | . . . . . . . . . . . . . . . . . Parts Stolen . | . . . . . . . . . . . . . . . . . Parts Stripped . | . . . . . . . . . . . . . . . . . Power Chain Reactions . | . . . . . . . . . . . . . . . . . Missiles Intercepted . | . . . . . . . . . . . . . . . . . Alert | -11 -10 -9 -9 -9 -8 -8 -7 -6 -6 -5 -5 -5 -5 -4 -4 -4 ------- Run | Jun Mat Mat Min Exi Min Mat Fac Fac DSF Fac Upp Upp War Pro Fac Gar Peak Influence 186 | . 15 20 64 . 41 178 102 16 21 186 . . . . 45 24 Initial 80 | . . 5 7 . . 15 80 16 11 10 . . . . . 24 Average 45 | . 3 16 40 . 36 67 77 16 9 74 . . . . 17 15 Maximum Alert Level . | . . . . . . . . . . . . . . . . . Low Security (%) 100 | 100 100 100 100 . 100 100 100 100 100 100 . . . . 100 100 Level 1 . | . . . . . . . . . . . . . . . . . Level 2 . | . . . . . . . . . . . . . . . . . Level 3 . | . . . . . . . . . . . . . . . . . Level 4 . | . . . . . . . . . . . . . . . . . Level 5 . | . . . . . . . . . . . . . . . . . High Security . | . . . . . . . . . . . . . . . . . Max Security . | . . . . . . . . . . . . . . . . . Squads Dispatched 6 | . 2 1 . . . . . . . 1 . . . . 2 . Investigation 3 | . 1 1 . . . . . . . . . . . . 1 . Extermination . | . . . . . . . . . . . . . . . . . Reinforcement 3 | . 1 . . . . . . . . 1 . . . . 1 . Assault . | . . . . . . . . . . . . . . . . . Garrison . | . . . . . . . . . . . . . . . . . Intercept . | . . . . . . . . . . . . . . . . . Searches Triggered . | . . . . . . . . . . . . . . . . . Construction Impeded . | . . . . . . . . . . . . . . . . . Haulers Reinforced . | . . . . . . . . . . . . . . . . . Active Scanning Responses . | . . . . . . . . . . . . . . . . . Cargo Convoy Interrupts . | . . . . . . . . . . . . . . . . . Stealth | -11 -10 -9 -9 -9 -8 -8 -7 -6 -6 -5 -5 -5 -5 -4 -4 -4 --------- Run | Jun Mat Mat Min Exi Min Mat Fac Fac DSF Fac Upp Upp War Pro Fac Gar Distress Signals 4 | . . . . . . 2 . . . 1 . . . . 1 . Communications Jammed . | . . . . . . . . . . . . . . . . . Distress Signals . | . . . . . . . . . . . . . . . . . Times Spotted 88 | . 5 5 3 . 1 8 1 . . 14 . 7 13 . 13 18 Peak Tracking Total 20 | . 4 6 2 . 1 4 1 . 1 7 . 5 10 . 15 20 Tactical Retreats 6 | . . . 1 . . . . . 2 2 . 1 . . . . Traps | -11 -10 -9 -9 -9 -8 -8 -7 -6 -6 -5 -5 -5 -5 -4 -4 -4 ------- Run | Jun Mat Mat Min Exi Min Mat Fac Fac DSF Fac Upp Upp War Pro Fac Gar Traps Triggered 5 | . 1 1 . . . 1 . . 1 1 . . . . . . Indirectly . | . . . . . . . . . . . . . . . . . Trap Hack Attempts . | . . . . . . . . . . . . . . . . . Triggered . | . . . . . . . . . . . . . . . . . Disarmed . | . . . . . . . . . . . . . . . . . Reprogrammed . | . . . . . . . . . . . . . . . . . Reused . | . . . . . . . . . . . . . . . . . Traps Extracted . | . . . . . . . . . . . . . . . . . Installed . | . . . . . . . . . . . . . . . . . Triggered 7 | . . . . . . . . . . . . 1 6 . . . Machines | -11 -10 -9 -9 -9 -8 -8 -7 -6 -6 -5 -5 -5 -5 -4 -4 -4 ---------- Run | Jun Mat Mat Min Exi Min Mat Fac Fac DSF Fac Upp Upp War Pro Fac Gar Machines Disabled 6 | . . . . . . 2 . . . . . 1 3 . . . Max in Single Turn 1 | . . . . . . . . . . . . 1 1 . . . Machines Repaired . | . . . . . . . . . . . . . . . . . Machines Sabotaged . | . . . . . . . . . . . . . . . . . Overloaded Fab Kills . | . . . . . . . . . . . . . . . . . Hacking | -11 -10 -9 -9 -9 -8 -8 -7 -6 -6 -5 -5 -5 -5 -4 -4 -4 --------- Run | Jun Mat Mat Min Exi Min Mat Fac Fac DSF Fac Upp Upp War Pro Fac Gar Machines Accessed 10 | . . . . . . 1 2 1 . 1 1 . 2 . 2 . Terminals 6 | . . . . . . 1 2 1 . 1 . . . . 1 . Fabricators . | . . . . . . . . . . . . . . . . . Repair Stations . | . . . . . . . . . . . . . . . . . Recycling Units . | . . . . . . . . . . . . . . . . . Scanalyzers . | . . . . . . . . . . . . . . . . . Garrison Access 1 | . . . . . . . . . . . . . . . 1 . Total Hacks 15 | . . . . . . 2 2 2 . 2 1 . 2 . 4 . Successful 8 | . . . . . . 1 1 1 . 1 1 . 2 . 1 . Failed 7 | . . . . . . 1 1 1 . 1 . . . . 3 . Catastrophic 4 | . . . . . . . 1 . . . . . . . 3 . Database Lockouts . | . . . . . . . . . . . . . . . . . Manual 4 | . . . . 1 . . 1 . . 2 . . . . . . Terminals 11 | . . . . . . 2 2 2 . 2 . . . . 3 . Fabricators . | . . . . . . . . . . . . . . . . . Repair Stations . | . . . . . . . . . . . . . . . . . Recycling Units . | . . . . . . . . . . . . . . . . . Scanalyzers . | . . . . . . . . . . . . . . . . . Garrison Access 1 | . . . . . . . . . . . . . . . 1 . Terminal Hacks 7 | . . . . . . 1 1 1 . 1 1 . 2 . . . Prototype ID Bank 1 | . . . . . . 1 . . . . . . . . . . Open Door 3 | . . . . . . . . . . . 1 . 2 . . . Open DSF 1 | . . . . . . . . 1 . . . . . . . . Level Access Points 1 | . . . . . . . 1 . . . . . . . . . Branch Access Points 1 | . . . . . . . . . . 1 . . . . . . Fabricator Hacks . | . . . . . . . . . . . . . . . . . Repair Station Hacks . | . . . . . . . . . . . . . . . . . Recycling Unit Hacks . | . . . . . . . . . . . . . . . . . Scanalyzer . | . . . . . . . . . . . . . . . . . Garrison Access Hacks 1 | . . . . . . . . . . . . . . . 1 . Unlock Access 1 | . . . . . . . . . . . . . . . 1 . Unauthorized Hacks . | . . . . . . . . . . . . . . . . . Terminals . | . . . . . . . . . . . . . . . . . Fabricators . | . . . . . . . . . . . . . . . . . Repair Stations . | . . . . . . . . . . . . . . . . . Recycling Units . | . . . . . . . . . . . . . . . . . Scanalyzers . | . . . . . . . . . . . . . . . . . Garrison Access . | . . . . . . . . . . . . . . . . . Data Cores Recovered 1 | . . . . . . . 1 . . . . . . . . . Used 1 | . . . . . . . 1 . . . . . . . . . Hacking Detections 5 | . . . . . . 1 2 1 . . . . . . 1 . Full Trace Events 1 | . . . . . . . . . . . . . . . 1 . Feedback Events 1 | . . . . . . . . . . . . . . . 1 . Corruption 1 | . . . . . . . . . . . . . . . 1 . Feedback Blocked . | . . . . . . . . . . . . . . . . . Robot Schematics Acquired . | . . . . . . . . . . . . . . . . . Robots Built . | . . . . . . . . . . . . . . . . . Authchips . | . . . . . . . . . . . . . . . . . Time . | . . . . . . . . . . . . . . . . . Total Robot Build Rating . | . . . . . . . . . . . . . . . . . Part Schematics Acquired . | . . . . . . . . . . . . . . . . . Parts Built . | . . . . . . . . . . . . . . . . . Authchips . | . . . . . . . . . . . . . . . . . Time . | . . . . . . . . . . . . . . . . . Total Part Build Rating . | . . . . . . . . . . . . . . . . . Parts Repaired . | . . . . . . . . . . . . . . . . . Time . | . . . . . . . . . . . . . . . . . Parts Recycled . | . . . . . . . . . . . . . . . . . Recycled Matter . | . . . . . . . . . . . . . . . . . Retrieved Matter . | . . . . . . . . . . . . . . . . . Retrieved Components . | . . . . . . . . . . . . . . . . . Parts Scanalyzed . | . . . . . . . . . . . . . . . . . Part Schematics Acquired . | . . . . . . . . . . . . . . . . . Parts Damaged . | . . . . . . . . . . . . . . . . . Bothacking | -11 -10 -9 -9 -9 -8 -8 -7 -6 -6 -5 -5 -5 -5 -4 -4 -4 ------------ Run | Jun Mat Mat Min Exi Min Mat Fac Fac DSF Fac Upp Upp War Pro Fac Gar Used RIF Installer . | . . . . . . . . . . . . . . . . . Robots Hacked . | . . . . . . . . . . . . . . . . . Non-combat . | . . . . . . . . . . . . . . . . . Combat . | . . . . . . . . . . . . . . . . . Robot Hacks Applied . | . . . . . . . . . . . . . . . . . Relay Couplers Released . | . . . . . . . . . . . . . . . . . Fabnet Peak Effective % . | . . . . . . . . . . . . . . . . . Robots Rewired 4 | . . . . 4 . . . . . . . . . . . . Allies Hacked . | . . . . . . . . . . . . . . . . . Hacks Repelled . | . . . . . . . . . . . . . . . . . Allies | -11 -10 -9 -9 -9 -8 -8 -7 -6 -6 -5 -5 -5 -5 -4 -4 -4 -------- Run | Jun Mat Mat Min Exi Min Mat Fac Fac DSF Fac Upp Upp War Pro Fac Gar Total Allies 9 | . . . 5 4 . . . . . . . . . . . . Largest Group 6 | . . . 5 6 6 6 . . . . . . . . . . Highest-Rated Group 90 | . . . 79 90 90 90 . . . . . . . . . . Highest-Rated Ally 31 | . . . 31 31 21 21 . . . . . . . . . . Total Orders . | . . . . . . . . . . . . . . . . . Ally Attacks 68 | . . . 16 . 9 43 . . . . . . . . . . Total Damage 859 | . . . 148 . 115 596 . . . . . . . . . . Kills 10 | . . . 2 . 1 7 . . . . . . . . . . Allies Corrupted . | . . . . . . . . . . . . . . . . . Allies Melted . | . . . . . . . . . . . . . . . . . Intel | -11 -10 -9 -9 -9 -8 -8 -7 -6 -6 -5 -5 -5 -5 -4 -4 -4 ------- Run | Jun Mat Mat Min Exi Min Mat Fac Fac DSF Fac Upp Upp War Pro Fac Gar Robot Analysis Total . | . . . . . . . . . . . . . . . . . Derelict Logs Recovered 2 | . . . 1 . . . . . . . 1 . . . . . Drone Launches . | . . . . . . . . . . . . . . . . . Drone Recoveries . | . . . . . . . . . . . . . . . . . Exploration | -11 -10 -9 -9 -9 -8 -8 -7 -6 -6 -5 -5 -5 -5 -4 -4 -4 ------------- Run | Jun Mat Mat Min Exi Min Mat Fac Fac DSF Fac Upp Upp War Pro Fac Gar Turns Passed 1630 | 13 32 42 156 344 34 134 76 9 59 115 104 101 276 50 53 32 Spaces Moved 3826 | 26 63 84 179 330 12 219 183 33 75 356 416 342 1000 198 176 134 Core 750 | 26 63 84 179 330 12 56 . . . . . . . . . . Treads . | . . . . . . . . . . . . . . . . . Legs . | . . . . . . . . . . . . . . . . . Wheels . | . . . . . . . . . . . . . . . . . Hover . | . . . . . . . . . . . . . . . . . Flight 3076 | . . . . . . 163 183 33 75 356 416 342 1000 198 176 134 Fastest Speed 20 | 50 50 50 50 50 100 29 26 28 28 24 25 25 20 25 20 20 Average Speed 31 | 50 50 50 50 59 100 49 26 28 31 25 25 25 24 25 22 21 Slowest Speed 100 | 50 50 50 50 100 100 100 29 28 40 34 25 25 25 25 24 24 Overloaded Moves . | . . . . . . . . . . . . . . . . . Propulsion Burnouts . | . . . . . . . . . . . . . . . . . Robots Hopped 24 | . . . . . . 1 1 . . 6 1 1 7 . 4 3 Cave-ins Triggered 1 | . . . . . . . 1 . . . . . . . . . Exploration Rate (%) 34 | 3 25 15 48 85 5 21 8 1 70 14 57 59 86 41 9 37 Regions Visited 16 Branch Regions 7 Pre-discovered Areas 1 | . . . 1 . . . . . . . . . . . . . Known Exits Taken 8 | . . . . . . . 1 1 . 1 1 1 1 1 1 . Unknown Exits Taken 7 | 1 1 1 1 1 1 1 . . . . . . . . . . Scrap Searched 6 | . . . 1 . . . . . . . 3 2 . . . . Spaces Dug 10 | . . . . . . . 6 . . 4 . . . . . . Terrain Destroyed 20 | . . . . . . . 6 . . 4 . . 10 . . . Melee 10 | . . . . . . . 6 . . 4 . . . . . . Projectile 10 | . . . . . . . . . . . . . 10 . . . AOE . | . . . . . . . . . . . . . . . . . Terrain Rammed . | . . . . . . . . . . . . . . . . . Walls Destroyed . | . . . . . . . . . . . . . . . . . Machines Disabled . | . . . . . . . . . . . . . . . . . Actions | -11 -10 -9 -9 -9 -8 -8 -7 -6 -6 -5 -5 -5 -5 -4 -4 -4 --------- Run | Jun Mat Mat Min Exi Min Mat Fac Fac DSF Fac Upp Upp War Pro Fac Gar Total 4152 | 25 62 83 244 477 34 239 193 32 110 362 414 350 1011 197 185 134 Wait 146 | . . . 57 47 23 7 . . 1 . . . . . 9 2 Move 3770 | 25 62 83 178 329 11 216 180 32 74 345 413 339 989 197 169 128 Hop 15 | . . . . . . 1 1 . . 4 1 1 3 . 2 2 Pick Up 17 | . . . . 3 . 2 . . 7 1 . 1 3 . . . Fast Attach 29 | . . . . 1 . 8 3 . 8 5 . 1 3 . . . Attach 7 | . . . . . . 1 2 . . 1 . . . . 2 1 Detach 1 | . . . . . . 1 . . . . . . . . . . Swap 4 | . . . . . . 1 . . . . . 3 . . . . Drop 19 | . . . . . . 2 . . 5 . . 2 6 . 3 1 Fire 7 | . . . . . . . . . . . . . 7 . . . Melee 16 | . . . . . . . 7 . . 6 . 3 . . . . Ram 9 | . . . 9 . . . . . . . . . . . . . Kick . | . . . . . . . . . . . . . . . . . Crush . | . . . . . . . . . . . . . . . . . Escape Stasis 15 | . . . . . . . . . 15 . . . . . . . Rewire 97 | . . . . 97 . . . . . . . . . . . . Trap . | . . . . . . . . . . . . . . . . . Miscellaneous . | . . . . . . . . . . . . . . . . . Route ------- -11/Junkyard -10/Materials -9/Materials -9/Mines -9/Exiles -8/Mines -8/Materials -7/Factory (discovered 4 exits: *Fac x4) -6/Factory -6/DSF -5/Factory (discovered 2 exits: *Upp x2) -5/Upper Caves -5/Upper Caves -5/Warlord -4/Proximity Caves -4/Factory (discovered 2 exits: [*Res] / Gar) -4/Garrison (discovered 1 exit: *Fac) History --------- Turn | Location | Event 5 | -11/Junkyard | Discovered new exit (range 15) 14 | -11/Junkyard | Entered Materials 38 | -10/Materials | Discovered new exit (range 16) 46 | -10/Materials | Entered another Materials area 46 | -9/Materials | Evolved 2 slots: Propulsion x2 81 | -9/Materials | Discovered new exit (range 15) 88 | -9/Materials | Entered Mines 89 | -9/Mines | Assisted by bots powering up and referring to "LRC-V3" 117 | -9/Mines | Met a Derelict bent on vengeance 154 | -9/Mines | Found a damaged Exp. Sensor Array with a note attached 177 | -9/Mines | Learned location of Storage (-7) 184 | -9/Mines | Deemed a non-threat by the Exiles lab entrance 184 | -9/Mines | Discovered new exit (range 5) 244 | -9/Mines | Entered Exiles 244 | -9/Exiles | Found Exiles lab destroyed 244 | -9/Exiles | Accompanied by 4 allies 274 | -9/Exiles | Led the pair of lost Derelicts to a safe place 305 | -9/Exiles | Build established: Mutant 322 | -9/Exiles | Opened EX-Vault 324 | -9/Exiles | Found Deploy-a-Sentry 326 | -9/Exiles | Found Deploy-a-Sentry 327 | -9/Exiles | Found Deploy-a-Sentry 555 | -9/Exiles | Discovered new exit (range 14) 588 | -9/Exiles | Entered Mines 588 | -8/Mines | Accompanied by 6 allies 594 | -8/Mines | Discovered new exit (range 7) 622 | -8/Mines | Entered Materials 622 | -8/Materials | Accompanied by 6 allies 622 | -8/Materials | Evolved 2 slots: Utility x2 754 | -8/Materials | Discovered new exit (range 7) 756 | -8/Materials | Entered Factory 756 | -7/Factory | Evolved 2 slots: Propulsion x1, Utility x1 803 | -7/Factory | Identified exit to Factory 809 | -7/Factory | Crushed by falling debris 809 | -7/Factory | System corruption reached 10% 832 | -7/Factory | Entered another Factory area 832 | -6/Factory | Evolved 2 slots: Propulsion x1, Utility x1 841 | -6/Factory | Identified exit to DSF 841 | -6/Factory | Entered DSF 864 | -6/DSF | Additional patrols routed to DSF 876 | -6/DSF | Discovered new exit (range 12) 900 | -6/DSF | Lost 9 parts (2p3n4u) 900 | -6/DSF | Entered Factory 900 | -5/Factory | Evolved 2 slots: Propulsion x1, Utility x1 937 | -5/Factory | Identified exit to Upper Caves 1015 | -5/Factory | Entered Upper Caves 1022 | -5/Upper Caves | Encountered a Warlord checkpoint 1064 | -5/Upper Caves | Learned Factory trap positions 1119 | -5/Upper Caves | Discovered new exit (range 2) 1119 | -5/Upper Caves | Identified exit to Upper Caves 1119 | -5/Upper Caves | Entered another Upper Caves area 1207 | -5/Upper Caves | Build established: Hacker-Sprinter 1207 | -5/Upper Caves | Discovered new exit (range 12) 1216 | -5/Upper Caves | Found Alien Artifact 1220 | -5/Upper Caves | Identified exit to Warlord 1220 | -5/Upper Caves | Entered Warlord 1345 | -5/Warlord | Visited the Vortex Lab 1346 | -5/Warlord | Found Prototype Energy Gun 1346 | -5/Warlord | Identified Vortex Rail 1348 | -5/Warlord | Found Vortex Rail 1367 | -5/Warlord | Warlord's base attacked by MAIN.C 1404 | -5/Warlord | Met Warlord 1410 | -5/Warlord | Found Prototype Processor 1410 | -5/Warlord | Identified Spectral Analyzer 1418 | -5/Warlord | Found Prototype Reactor 1476 | -5/Warlord | Opened side exit 1492 | -5/Warlord | Spotted B-86 Titan 1494 | -5/Warlord | Discovered new exit (range 12) 1496 | -5/Warlord | Identified exit to Proximity Caves 1496 | -5/Warlord | Entered Proximity Caves 1544 | -4/Proximity Caves | Discovered new exit (range 10) 1545 | -4/Proximity Caves | Identified exit to Factory 1546 | -4/Proximity Caves | Entered Factory 1546 | -4/Factory | Evolved 2 slots: Power x1, Propulsion x1 1547 | -4/Factory | Loaded intel: 117 trap records 1547 | -4/Factory | Identified Vortex Chain Reactor 1578 | -4/Factory | Discovered new exit (range 14) 1599 | -4/Factory | Identified exit to Garrison 1599 | -4/Factory | Entered Garrison 1612 | -4/Garrison | Spotted B-86 Titan 1622 | -4/Garrison | Discovered new exit (range 11) 1624 | -4/Garrison | Identified exit to Factory 1624 | -4/Garrison | Attempted to access garrison exit controls, blocked by remote lockdown 1631 | -4/Garrison | Self-destructed Last Messages --------------- 01592_ K-01 Serf pushes I-47 Archangel. 01599_ Connecting with Garrison Access... >>Unlock Access door unlocked. 01599_ EXIT=UNLOCKED: GARRISON 01599_ Connecting with Garrison Access... LOCATION=GARRISON GOAL=ESCAPE 01613_ YM=T